Cogmind - Beta 12 @@@ ROGUE MODE // 2023.03.09 @ 01:11:15 Player: Sussy Jin Result: Destroyed by G-34 Mercenary with Small Laser Performance ------------- Evolutions (1) 500 Regions Visited (2) 400 Robots Destroyed (58) 290 Value Destroyed (1569) 1569 Prototype IDs (2) 40 Alien Tech Used (0) 0 Bonus (0) 0 TOTAL SCORE: 2799 Bonus ------- None Cogmind --------- Core Integrity 0/400 Matter 280/300 Energy 16/100 System Corruption 1% Temperature Cool (6) Movement Walking (120) Location -9/Materials Parts ------- > --- POWER (1) -------- (None) > --- PROPULSION (3) --- Improved Aluminum Leg Improved Aluminum Leg Improved Aluminum Leg > --- UTILITY (3) ------ Heat Sink Terrain Scanner Hardened Light Armor Plating > --- WEAPON (2) ------- Beam Rifle Light Assault Rifle > --- INVENTORY (5) ---- Improved Aluminum Leg Improved Aluminum Leg Signal Interpreter Datajack Peak State ------------ > --- POWER ------------ Improved Ion Engine > --- PROPULSION ------- Light Treads Flight Unit Flight Unit > --- UTILITY ---------- Visual Processing Unit Targeting Computer Light Armor Plating > --- WEAPON ----------- Spread Laser Improved Light Cannon > --- INVENTORY -------- Light Ion Engine EM Pulse Gun Beam Cannon Datajack [Rating: 13] Favorites ----------- Power Improved Ion Engine Engine Improved Ion Engine Power Core Light Nuclear Core Propulsion Aluminum Leg Treads Light Treads Leg Aluminum Leg Wheel Wheel Flight Unit Flight Unit Utility Targeting Computer Device Heat Sink Storage Large Storage Unit Processor Targeting Computer Protection Light Armor Plating Weapon Beam Cannon Energy Gun Spread Laser Energy Cannon Beam Cannon Ballistic Gun Light Assault Rifle Ballistic Cannon Improved Light Cannon Special Melee Weapon Datajack Build | -11 -10 -9 ------- Run | Jun Mat Mat Slots Evolved 2 | . . 2 Power . | . . . Propulsion 1 | . . 1 Utility 1 | . . 1 Weapon . | . . . Parts Attached 77 | 5 23 49 Power 11 | 1 3 7 Engine 10 | 1 2 7 Core 1 | . 1 . Reactor . | . . . Propulsion 22 | 2 4 16 Treads 1 | . . 1 Leg 16 | . 4 12 Wheel 2 | 2 . . Hover . | . . . Flight 3 | . . 3 Utility 15 | . 5 10 Device 4 | . 1 3 Storage 1 | . 1 . Processor 4 | . 2 2 Hackware . | . . . Protection 6 | . 1 5 Artifact . | . . . Weapon 29 | 2 11 16 Energy Gun 15 | 1 6 8 Energy Cannon 4 | . 2 2 Ballistic Gun 6 | 1 1 4 Ballistic Cannon 1 | . . 1 Launcher . | . . . Special Weapon . | . . . Impact Weapon . | . . . Slashing Weapon . | . . . Piercing Weapon . | . . . Special Melee Weapon 3 | . 2 1 Unidentified Prototypes . | . . . Parts Lost 20 | . 5 15 Power 3 | . 1 2 Propulsion 7 | . 2 5 Utility 5 | . 1 4 Weapon 5 | . 1 4 Highest Loss Streak 8 | . 3 8 To Critical Strikes . | . . . Average Slot Usage (%) 84 | . 87 82 Engine 8 | . 8 8 Core 1 | . 3 . Leg 16 | . 12 19 Wheel 3 | . 8 . Flight 2 | . . 4 Device 5 | . 7 5 Processor 15 | . 14 15 Protection 5 | . 1 6 Energy Gun 11 | . 12 10 Energy Cannon 5 | . 10 2 Ballistic Gun 4 | . 4 4 Ballistic Cannon 2 | . . 3 Naked Turns . | . . . Heaviest Build 27 | 7 27 17 Greatest Support 39 | 20 20 39 Greatest Overweight (x) 3 | . 3 3 Average Overweight (x) . | . . . Largest Inventory Capacity 15 | 5 15 5 Average Capacity 5 | 5 6 5 Most Carried 5 | 3 5 5 Average Carried 3 | 1 3 3 Final Capacity 5 | 5 5 5 Final Carried 4 | 1 4 4 Class Distribution -------------------- 65% | Mutant 34% | Scavenger-Mutant Dominant Class ---------------- Mutant | -10/Materials Mutant | -9/Materials Resources | -11 -10 -9 ----------- Run | Jun Mat Mat Matter Collected 1092 | 230 252 610 Remotely . | . . . Salvage Created 1661 | 48 494 1119 Parts 118 | 1 26 91 Haulers Intercepted . | . . . Recyclers Shooed 1 | . 1 . Parts Field Recycled . | . . . Retrieved Matter . | . . . Parts Self-Destructed . | . . . Prevented . | . . . Kills | -11 -10 -9 ------- Run | Jun Mat Mat Combat Hostiles Destroyed 52 | 1 13 38 Guns 34 | 1 9 24 Cannons 18 | . 4 14 Classes Destroyed 6 | 1 2 3 Worker 1 | . . 1 Watcher 5 | . 1 4 Swarmer 16 | . 3 13 Grunt 29 | 1 10 18 Brawler 1 | . . 1 Sentry 6 | . . 6 Best Kill Streak 8 | 1 3 8 Combat Bots Only 7 | 1 3 7 Max Kills in Single Turn 2 | 1 2 2 Gunslinging 1 | . 1 1 Exploded . | . . . Melee . | . . . Uniques/NPCs Destroyed . | . . . Combat | -11 -10 -9 -------- Run | Jun Mat Mat Damage Taken 3394 | 64 889 2441 Core 629 | . 221 408 Absorbed by Shields . | . . . Core Remaining (%) 55 | 100 11 . Volleys Fired 152 | 6 40 106 Largest 2 | 2 2 2 Hottest 125 | 70 120 125 Shots Fired 287 | 12 71 204 Gun 203 | 12 55 136 Cannon 84 | . 16 68 Launcher . | . . . Special . | . . . Kinetic 94 | 6 8 80 Thermal 180 | 6 57 117 Explosive . | . . . Electromagnetic 13 | . 6 7 Robot Hit Streak 15 | 5 11 15 Robot Miss Streak 8 | 1 8 8 Penetration Max . | . . . Secondary Targets 6 | . 2 4 Max Gunslinging Chain 1 | . 1 1 Shots Hit Robots 197 | 8 46 143 Core Hits 125 | 2 24 99 Critical Kills . | . . . Critical Parts Destroyed . | . . . Critical Strikes 5 | . 3 2 Burn 3 | . 3 . Destroy 1 | . . 1 Blast 1 | . . 1 Melee Attacks 4 | . 4 . Impact . | . . . Slashing . | . . . Piercing . | . . . Sneak Attacks 2 | . 2 . Combat Hostiles . | . . . Follow-up Attacks . | . . . Damage Inflicted 2729 | 98 704 1927 Guns 1658 | 98 459 1101 Cannons 1003 | . 177 826 Explosions 54 | . 54 . Melee . | . . . Ramming 14 | . 14 . Kinetic 775 | 60 58 657 Thermal 1815 | 38 571 1206 Explosive . | . . . Electromagnetic 125 | . 61 64 Impact . | . . . Slashing . | . . . Piercing . | . . . Highest Corruption 1 | . 1 1 Average Corruption 1 | . 1 1 Corruption Purged . | . . . Corruption Blocked . | . . . Effects 5 | . 2 3 Matter Fused 1 | . . 1 Heat Flow Errors 1 | . 1 . Parts Rejected 1 | . . 1 Parts Fused 1 | . . 1 Data Loss (major) 1 | . 1 . Overload Shots . | . . . Overflow Damage 10 | . . 10 Projectiles 10 | . . 10 Explosions . | . . . Melee . | . . . Knockbacks 8 | . 1 7 Impact 1 | . 1 . Kinetic 7 | . . 7 Secondary . | . . . Self-Inflicted Damage 28 | . 28 . Shots 1 | . 1 . Rammed . | . . . Targets Rammed 4 | . 4 . Kicked 4 | . 4 . Crushed . | . . . Highest Temperature 448 | 70 354 448 Average Temperature 112 | 39 111 116 Received Heat Transfer 1269 | 36 396 837 Effects 8 | . 3 5 Shutdowns 2 | . . 2 Energy Bleed 2 | . . 2 Interference 3 | . 3 . Short Circuit 1 | . . 1 Siege Activations . | . . . Robots Corrupted . | . . . Combat Hostiles . | . . . Parts Fried . | . . . Impact Corruptions . | . . . Robots Melted . | . . . Combat Hostiles . | . . . Parts Melted 1 | . 1 . Heat Transferred 3972 | 111 1741 2120 Parts Sabotaged . | . . . Parts Stolen . | . . . Parts Stripped . | . . . Power Chain Reactions 1 | . 1 . Missiles Intercepted . | . . . Alert | -11 -10 -9 ------- Run | Jun Mat Mat Peak Influence 364 | 20 185 364 Initial 70 | . 13 70 Average 156 | 1 73 216 Maximum Alert Level 1 | . . 1 Low Security (%) 61 | 100 100 35 Level 1 38 | . . 64 Level 2 . | . . . Level 3 . | . . . Level 4 . | . . . Level 5 . | . . . High Security . | . . . Max Security . | . . . Squads Dispatched 14 | . 4 10 Investigation 9 | . 2 7 Extermination . | . . . Reinforcement 5 | . 2 3 Assault . | . . . Garrison . | . . . Intercept . | . . . Searches Triggered . | . . . Construction Impeded . | . . . Haulers Reinforced . | . . . Active Scanning Responses . | . . . Cargo Convoy Interrupts . | . . . Stealth | -11 -10 -9 --------- Run | Jun Mat Mat Distress Signals 4 | . 1 3 Communications Jammed . | . . . Distress Signals . | . . . Times Spotted 68 | 1 19 48 Peak Tracking Total 7 | 1 4 7 Tactical Retreats 2 | . . 2 Traps | -11 -10 -9 ------- Run | Jun Mat Mat Traps Triggered 5 | . 3 2 Indirectly . | . . . Trap Hack Attempts . | . . . Triggered . | . . . Disarmed . | . . . Reprogrammed . | . . . Reused . | . . . Traps Extracted . | . . . Installed . | . . . Triggered . | . . . Machines | -11 -10 -9 ---------- Run | Jun Mat Mat Machines Disabled 1 | . . 1 Max in Single Turn 1 | . . 1 Machines Repaired . | . . . Machines Sabotaged . | . . . Overloaded Fab Kills . | . . . Hacking | -11 -10 -9 --------- Run | Jun Mat Mat Machines Accessed 12 | . 5 7 Terminals 9 | . 3 6 Fabricators . | . . . Repair Stations . | . . . Recycling Units 2 | . 2 . Scanalyzers 1 | . . 1 Garrison Access . | . . . Total Hacks 64 | . 28 36 Successful 42 | . 20 22 Failed 22 | . 8 14 Catastrophic 3 | . 1 2 Database Lockouts . | . . . Manual . | . . . Terminals 45 | . 12 33 Fabricators . | . . . Repair Stations . | . . . Recycling Units 16 | . 16 . Scanalyzers 3 | . . 3 Garrison Access . | . . . Terminal Hacks 28 | . 8 20 Record 8 | . 1 7 Prototype ID Bank 1 | . . 1 Emergency Access Points 3 | . 1 2 Alert Level 2 | . 2 . Unreport Threat 2 | . . 2 Dispatch Records 2 | . 1 1 Maintenance Status 1 | . . 1 Transport Status 1 | . . 1 Assault Status 1 | . . 1 Hauler Manifests 3 | . 2 1 Zone Layout 4 | . 1 3 Fabricator Hacks . | . . . Repair Station Hacks . | . . . Recycling Unit Hacks 12 | . 12 . Recycle Component 4 | . 4 . Process 4 | . 4 . Report Inventory 1 | . 1 . Retrieve Matter 2 | . 2 . Retrieve Components 1 | . 1 . Scanalyzer 2 | . . 2 Insert Component 1 | . . 1 Analyze 1 | . . 1 Garrison Access Hacks . | . . . Unauthorized Hacks . | . . . Terminals . | . . . Fabricators . | . . . Repair Stations . | . . . Recycling Units . | . . . Scanalyzers . | . . . Garrison Access . | . . . Data Cores Recovered . | . . . Used . | . . . Hacking Detections 12 | . 5 7 Full Trace Events 11 | . 5 6 Feedback Events 1 | . 1 . Corruption 1 | . 1 . Feedback Blocked . | . . . Robot Schematics Acquired . | . . . Robots Built . | . . . Authchips . | . . . Time . | . . . Total Robot Build Rating . | . . . Part Schematics Acquired 1 | . . 1 Parts Built . | . . . Authchips . | . . . Time . | . . . Total Part Build Rating . | . . . Parts Repaired . | . . . Time . | . . . Parts Recycled 4 | . 4 . Recycled Matter 176 | . 176 . Retrieved Matter 5 | . 5 . Retrieved Components 1 | . 1 . Parts Scanalyzed 1 | . . 1 Part Schematics Acquired 1 | . . 1 Parts Damaged . | . . . Bothacking | -11 -10 -9 ------------ Run | Jun Mat Mat Used RIF Installer . | . . . Robots Hacked 2 | . 2 . Non-combat 2 | . 2 . Combat . | . . . Robot Hacks Applied 3 | . 3 . parse_system 2 | . 2 . no_distress 1 | . 1 . Relay Couplers Released . | . . . Fabnet Peak Effective % . | . . . Robots Rewired . | . . . Allies Hacked . | . . . Hacks Repelled . | . . . Allies | -11 -10 -9 -------- Run | Jun Mat Mat Total Allies . | . . . Largest Group . | . . . Highest-Rated Group . | . . . Highest-Rated Ally . | . . . Total Orders . | . . . Ally Attacks . | . . . Total Damage . | . . . Kills . | . . . Allies Corrupted . | . . . Allies Melted . | . . . Intel | -11 -10 -9 ------- Run | Jun Mat Mat Robot Analysis Total . | . . . Derelict Logs Recovered . | . . . Drone Launches . | . . . Drone Recoveries . | . . . Exploration | -11 -10 -9 ------------- Run | Jun Mat Mat Turns Passed 2167 | 84 780 1303 Spaces Moved 1165 | 77 482 606 Core 50 | 22 15 13 Treads 71 | . . 71 Legs 716 | . 259 457 Wheels 263 | 55 208 . Hover . | . . . Flight 65 | . . 65 Fastest Speed 34 | 50 80 34 Average Speed 122 | 71 120 130 Slowest Speed 200 | 80 200 200 Overloaded Moves . | . . . Propulsion Burnouts . | . . . Robots Hopped . | . . . Cave-ins Triggered . | . . . Exploration Rate (%) 42 | 8 74 45 Regions Visited 2 Branch Regions . Pre-discovered Areas . | . . . Known Exits Taken . | . . . Unknown Exits Taken 2 | 1 1 . Scrap Searched . | . . . Spaces Dug . | . . . Terrain Destroyed 3 | . 2 1 Melee . | . . . Projectile 1 | . . 1 AOE 2 | . 2 . Terrain Rammed . | . . . Walls Destroyed . | . . . Machines Disabled . | . . . Actions | -11 -10 -9 --------- Run | Jun Mat Mat Total 1633 | 93 610 930 Wait 73 | . 1 72 Move 1163 | 76 481 606 Hop . | . . . Pick Up 101 | 6 35 60 Fast Attach . | . . . Attach 37 | 5 6 26 Detach . | . . . Swap 40 | . 17 23 Drop 59 | . 22 37 Fire 152 | 6 40 106 Melee 4 | . 4 . Ram . | . . . Kick 4 | . 4 . Crush . | . . . Escape Stasis . | . . . Rewire . | . . . Trap . | . . . Miscellaneous . | . . . Route ------- -11/Junkyard -10/Materials (discovered 3 exits: *Mat x2 / [*Min]) -9/Materials (discovered 1 exit: [*Mat]) History --------- Turn | Location | Event 2 | -11/Junkyard | Met Revision 17 55 | -11/Junkyard | Discovered new exit (range 8) 85 | -11/Junkyard | Entered Materials 250 | -10/Materials | Discovered new exit (range 10) 312 | -10/Materials | Build established: Mutant 392 | -10/Materials | Discovered new exit (range 15) 503 | -10/Materials | Core integrity fell below 50% 552 | -10/Materials | Lost 3 parts (1p1n1w) 767 | -10/Materials | Discovered new exit (range 5) 815 | -10/Materials | Core integrity fell below 20% 865 | -10/Materials | Entered another Materials area 865 | -9/Materials | Evolved 2 slots: Propulsion x1, Utility x1 1563 | -9/Materials | Discovered new exit (range 11) 1735 | -9/Materials | Core integrity fell below 50% 1770 | -9/Materials | Destroyed 7 combat bots 1773 | -9/Materials | Core integrity fell below 20% 1790 | -9/Materials | Lost 8 parts (3n2u3w) 2168 | -9/Materials | Destroyed by G-34 Mercenary with Small Laser Last Messages --------------- K-01 Serf collects debris. U-05 Engineer lays Concrete. Critical hit (Burn: +37). W-16 Scout destroyed. Switching to secondary target: Y-45 Defender. Y-45 Defender suffers critical hit (Destroy). Y-45 Defender destroyed. Acquired Signal Interpreter. Acquired Heat Sink. Dropped Heat Sink. Acquired 42 matter. Acquired Beam Rifle. K-01 Serf collects debris. Dropped Sml. Laser. K-01 Serf cleans the Fusion Modulator. Acquired Imp. Aluminum Leg. K-01 Serf cleans the Fusion Modulator. System corrupted: Beam Rifle rejected. Acquired Beam Rifle. K-01 Serf cleans the Fusion Modulator. Map ----- +----------------------------------------------------+ | | | | | | | | | | | | | | | | | | | | | | | ?????????????????????????????????????????????????? | | ?????????????????????????????????????????????????? | | ?????????????????????????????????????????????????? | | ?????????????????????????????????????????????????? | | ?????????????????????????????????????????????????? | | ?????????????????????????????????????????????????? | | ??????????????????????????????###????????????????? | | ??????????????????????????????????? ?????????????? | | ?????????????????????#???????#????? ?????????????? | | ?????????????????????????????????????????????????? | | ?????????????????????#????#????????? ????????????? | | ???????????????????????###########? ?????????????? | | ???????????????????????# #??? ##?????????? | | ???????????????????????# #? #?????????? | | ???????????????????????# @ g # ##????????? | | ??????????????????#????# """ + ?? | | ???????????????????????# """ # ?? | | ????????????????????##?# == """[#?? ######?#??? | | ??????????????????????## = !%=#????##??????##?? | | ?????????????????#?#???# !!#?#??????#??## ?? | | ???????????????#???????####k######????????????# ?? | | ????????????????????????### #### ###?????????## | | ?????????????????????????#" #""""""##??????#??# | | ???????????????????????###" # ##???##????? | | ????????????????????????# " # "##?#?#????? | | ????????????????????? ??##" " "#??????????#+# | | ???????????????????? ?#### " "###???????## # | | ????????????????#??????+ " = ############ | | ???????????????#???????# " # #T | | ????????????????????#+## """"#### ## | | ?????????????+ / ## | | ???????????????### ###"""##### ## | | ?????????????????# """ ??#######?# ## | | ?????????????????# """ ???????????# ## | | ?????????????????# """ ???????????# ## | | ???????????????????? ??????#####?# ## | | ???????????????????? ??????# ##+######### | | ??????????????????? ????#??#% % | | ?????????????????????? ??????# % % | +----------------------------------------------------+ Best States ------------- Heat Dissipation 39 Energy Generation 14 Energy Capacity 265 Matter Stores 300 Matter Capacity 300 Sight Range 18 Terrain Scan Range 14 Terrain Scan Density 10 Armor Coverage 150 Evasion (%) 63 Targeting Accuracy 10 Recoil Reduction 1 Item Schematics ----------------- Beam Cannon | -9/Materials | Scanalyzed Robot Schematics ------------------ None Fabricated ------------ Nothing Alien Tech Used ----------------- None Achievements -------------- Everything Is Under Control Party Time Shopping List Challenges ------------ None Game ------ Seed PoweredMachineInitializer Manual? 0 Play Time 00:28:14 Cumulative 1.8 hours Start 2023.03.09 @ 00:43:40 End 2023.03.09 @ 01:11:15 Sessions 1 Manual Loads 0 Difficulty Rogue Special Mode None Game No. 2 Rogue 2 Adventurer 0 Explorer 0 Win Type - Total 0 Types 0/0/0/0/0/0/0/0/0 Lore% 1 Gallery% 5 Achievement% 6 Wizard Run 0 Options --------- ASCII 0 Keyboard 0 Movement Arrows Keybinds 0 Fullscreen 2 Font 18/TerminusBold Map View 76x50 Tactical HUD 0 Map Filters NONE Filters NONE Steam 1 RUN: 47ebc355-4859-4dfe-9ef0-1e24becd584c